bitfinex-derivatives/quotes_ETHF0:USTF0_20210110
["timestamp","ask_amount","ask_price","bid_price","bid_amount"]
[1610305048019,1.20304991,1281.0,1280.8,52.3216]
[1610305048419,1.20304991,1281.0,1280.9,10.0]
[1610305055827,1.20304991,1281.0,1280.9,14.00959]
[1610305056825,1.20304991,1281.0,1280.9,16.49419]
[1610305057426,51.50049,1281.3,1280.9,16.49419]
[1610305057828,51.50049,1281.3,1281.1,4.00959]
[1610305058431,51.50049,1281.3,1281.2,10.0]
[1610305059429,51.50049,1281.3,1281.2,11.715]
[1610305060833,51.50049,1281.3,1281.2,10.0]
[1610305061435,52.7033215,1281.3,1281.2,10.0]
[1610305063935,5.2124215,1281.3,1281.2,10.0]
[1610305068540,1.2028315,1281.3,1281.2,10.0]
[1610305069741,5.2124215,1281.3,1281.2,10.0]
[1610305082262,5.2124215,1281.3,1281.2,9.2934]
[1610305082763,13.6805215,1281.3,1281.2,9.2934]
[1610305086964,33.9311521,1281.3,1281.2,9.2934]
[1610305087163,13.6805215,1281.3,1281.0,10.0]
[1610305087565,13.6805215,1281.3,1280.3,10.0]
[1610305087765,20.25473291,1281.2,1280.4,10.0]
[1610305088165,20.25473291,1281.2,1280.3,10.0]
[1610305088566,20.25473291,1281.2,1280.4,10.0]
[1610305088768,1.20358252,1281.1,1280.4,10.0]
[1610305088966,3.18178252,1281.1,1280.3,10.0]
[1610305089168,3.18178252,1281.1,1280.5,10.0]
[1610305089570,23.44771206,1281.1,1280.6,10.0]
[1610305089770,20.26208544,1281.0,1280.6,10.0]
[1610305089970,4.00959,1280.7,1280.3,10.0]
[1610305090170,6.19989,1280.7,1280.6,10.0]
[1610305090572,6.19989,1280.7,1280.3,10.0]
[1610305090970,6.19989,1280.7,1280.4,10.0]
[1610305091373,6.19989,1280.7,1280.3,10.0]
[1610305091571,1.20378205,1280.6,1280.3,10.0]
[1610305091772,1.20378205,1280.6,1280.5,10.0]
[1610305092172,1.20378205,1280.6,1280.3,10.0]
[1610305092571,1.20378205,1280.6,1279.8,10.0]
[1610305092972,1.20378205,1280.6,1280.4,10.0]
[1610305093271,1.20378205,1280.6,1279.7,4.00959]
[1610305093272,1.20378205,1280.6,1279.8,10.0]
[1610305093672,1.20378205,1280.6,1279.9,10.0]
[1610305093872,4.00959,1280.0,1279.9,10.0]
[1610305094073,4.00959,1280.0,1279.8,10.0]
[1610305094472,4.00959,1280.0,1279.7,10.0]
[1610305094671,4.00959,1280.0,1279.6,55.5101]
[1610305094672,4.00959,1280.0,1279.9,10.0]
[1610305095072,4.00959,1280.0,1279.6,55.5101]
[1610305095474,4.00959,1280.0,1279.9,10.0]
[1610305095674,4.00959,1280.0,1279.6,55.5101]
[1610305095874,4.00959,1279.7,1279.6,55.5101]
[1610305096575,4.00959,1279.7,1279.6,65.5101]
[1610305098676,5.21349952,1279.7,1279.6,65.5101]
[1610305101578,5.21349952,1279.7,1279.6,11.9704]
[1610305101978,5.21349952,1279.7,1279.6,10.0]
[1610305105881,1.20390952,1279.7,1279.6,10.0]
[1610305106482,1.20390952,1279.7,1279.6,12.0919]
[1610305107282,0.81380952,1279.7,1279.6,12.0919]
[1610305107482,1.2035566,1280.4,1279.6,42.0919]
[1610305107682,56.3789,1280.3,1279.6,42.0919]
[1610305107883,4.00959,1280.9,1280.2,4.00959]
[1610305108081,1.6804,1281.4,1280.2,7.76419]
[1610305108281,20.35176143,1281.7,1280.3,10.0]
[1610305108681,20.36912844,1281.6,1280.4,10.0]
[1610305108882,1.20313011,1280.8,1280.4,10.0]
[1610305109083,1.20313011,1280.8,1280.3,10.0]
[1610305109484,1.20313011,1280.8,1280.5,10.0]
[1610305109682,1.20313011,1280.8,1280.6,10.0]
[1610305109882,1.20313011,1280.8,1280.7,4.00959]
[1610305110282,1.20283447,1281.5,1280.7,14.00959]
[1610305110684,1.20283447,1281.5,1280.8,10.0]
[1610305110884,1.20283447,1281.5,1280.8,11.7876]
[1610305111088,1.20283447,1281.5,1280.9,10.0]
[1610305111283,1.20283447,1281.5,1280.9,11.5836]
[1610305111685,1.20267462,1281.6,1281.0,10.0]
[1610305111891,1.20267462,1281.6,1281.5,4.00959]
[1610305112086,1.20267462,1281.6,1281.5,5.56949]
[1610305112286,1.20267462,1281.6,1281.5,7.35619]
[1610305112492,1.20267462,1281.6,1281.5,17.35619]
[1610305113086,1.20228401,1282.4,1281.5,17.35619]
[1610305113488,1.20228401,1282.4,1281.6,10.0]
[1610305113885,1.20228401,1282.4,1282.3,4.00959]
[1610305114489,1.20212716,1282.6,1282.3,6.16659]
[1610305114686,1.20212716,1282.6,1282.3,16.16659]
[1610305115286,1.20212716,1282.6,1282.4,10.0]
[1610305115687,1.20212716,1282.6,1282.5,10.0]
[1610305115889,1.20190082,1282.9,1282.5,14.00959]
[1610305116089,1.20190082,1282.9,1282.5,4.00959]
[1610305116388,1.20190082,1282.9,1282.6,10.0]
[1610305116989,1.20190082,1282.9,1282.7,10.0]
[1610305117188,1.20179127,1283.1,1282.8,10.0]
[1610305117789,20.480373,1283.0,1282.9,10.0]
[1610305117987,24.489963,1283.0,1282.3,2.157]
[1610305118189,4.00959,1283.0,1282.3,2.157]
[1610305118388,24.48126551,1283.0,1282.4,10.0]
[1610305118588,25.68316866,1283.0,1282.4,10.0]
[1610305118787,25.68316866,1283.0,1282.3,2.157]
[1610305118788,20.47509598,1282.9,1282.5,10.0]
[1610305119187,20.47509598,1282.9,1282.4,10.0]
[1610305119590,20.47509598,1282.9,1282.5,10.0]
[1610305119788,5.21149315,1283.0,1282.5,10.0]
[1610305119789,21.71248049,1283.0,1282.5,10.0]
[1610305119987,21.71248049,1283.0,1282.9,4.00959]
[1610305120188,20.51057734,1283.0,1282.9,4.00959]
[1610305120390,20.53632028,1283.2,1282.9,4.00959]
[1610305120588,20.53632028,1283.2,1282.9,14.00959]
[1610305120788,20.54492776,1283.3,1282.9,4.00959]
[1610305121290,20.54750189,1283.4,1283.0,10.0]
[1610305121488,20.54750189,1283.4,1282.9,4.00959]
[1610305121489,20.54750189,1283.4,1283.1,10.0]
[1610305122092,4.00959,1283.3,1283.0,10.0]
[1610305122291,24.5654932,1283.3,1283.1,10.0]
[1610305122490,20.5559032,1283.3,1283.1,10.0]
[1610305122691,20.5559032,1283.3,1282.7,1.5507]
[1610305122890,20.5559032,1283.3,1283.2,10.0]
[1610305123090,20.5559032,1283.3,1282.8,10.0]
[1610305123291,2.094,1283.5,1282.8,10.0]
[1610305123491,20.54952057,1283.1,1282.9,10.0]
[1610305123892,20.54952057,1283.1,1282.8,10.0]
[1610305124091,4.00959,1283.0,1282.5,4.00959]
[1610305124492,4.00959,1283.0,1282.9,10.0]
[1610305124693,4.00959,1283.0,1282.8,10.0]
[1610305124896,4.00959,1283.0,1282.4,2.1404]
[1610305125092,4.00959,1283.0,1282.9,10.0]
[1610305125293,4.00959,1283.0,1282.6,10.0]
[1610305125493,4.00959,1283.0,1282.3,1.9731]
[1610305125694,1.20201615,1282.9,1282.4,10.0]
[1610305125894,20.572837,1282.6,1282.4,10.0]
[1610305126094,4.00959,1282.5,1282.4,10.0]
[1610305126294,24.5642015,1282.5,1281.5,4.00959]
[1610305126697,20.53788062,1282.4,1281.6,10.0]
[1610305126896,22.34938062,1282.4,1281.6,10.0]
[1610305127095,23.55196801,1282.4,1281.7,10.0]
[1610305127496,3.01408739,1282.4,1281.6,10.0]
[1610305127897,3.01408739,1282.4,1281.7,10.0]
[1610305128098,4.00959,1282.2,1281.7,14.00959]
[1610305128298,4.00959,1282.2,1281.7,4.00959]
[1610305128498,4.00959,1282.2,1281.8,10.0]
[1610305128899,4.00959,1282.2,1281.2,10.0]
[1610305129299,4.00959,1282.2,1281.3,10.0]
[1610305129700,4.00959,1282.2,1281.2,10.0]
[1610305130100,4.00959,1282.0,1281.5,4.00959]
[1610305130700,4.00959,1282.0,1281.6,10.0]
[1610305131202,4.00959,1282.0,1281.7,10.0]
[1610305131403,4.00959,1282.0,1281.6,10.0]
[1610305131602,1.20260719,1281.9,1281.6,10.0]
[1610305131802,1.20260719,1281.9,1281.8,10.0]
[1610305132101,1.20260719,1281.9,1281.7,10.0]
[1610305132502,1.20260719,1281.9,1281.8,10.0]
[1610305132701,1.20260719,1281.9,1281.5,4.00959]
[1610305133101,1.20260719,1281.9,1281.8,10.0]
[1610305133301,1.20260719,1281.9,1281.6,10.0]
[1610305133502,1.20260719,1281.9,1281.5,4.00959]
[1610305133701,1.20260719,1281.9,1281.8,10.0]
[1610305134102,1.20260719,1281.9,1281.7,10.0]
[1610305134302,1.20260719,1281.9,1281.8,10.0]
[1610305134602,1.20260719,1281.9,1281.5,4.00959]
[1610305134603,1.20260719,1281.9,1281.6,10.0]
[1610305135002,1.20260719,1281.9,1281.7,10.0]
[1610305135203,1.20260719,1281.9,1281.6,10.0]
[1610305135801,1.20260719,1281.9,1281.7,10.0]
[1610305136001,1.20260719,1281.9,1281.6,10.0]
[1610305136402,1.20260719,1281.9,1281.7,10.0]
[1610305136601,1.20260719,1281.9,1281.6,10.0]
[1610305137004,1.20260719,1281.9,1281.8,10.0]
[1610305137402,1.20260719,1281.9,1281.7,10.0]
[1610305137604,1.20235897,1282.1,1281.7,1.5432]
[1610305137804,1.20235897,1282.1,1281.7,4.0457]
[1610305138003,1.20235897,1282.1,1281.8,10.0]
[1610305138203,1.20235897,1282.1,1282.0,4.00959]
[1610305138403,1.20235897,1282.1,1282.0,5.61219]
[1610305138804,21.75285215,1282.6,1282.0,15.61219]
[1610305139003,0.99250854,1282.6,1282.0,15.61219]
[1610305139204,0.62250854,1282.6,1282.1,10.0]
[1610305139405,0.22690854,1282.6,1282.1,11.5511]
[1610305139605,0.22690854,1282.6,1282.2,10.0]
[1610305139904,0.22690854,1282.6,1282.3,10.0]
[1610305140107,0.22690854,1282.6,1282.5,4.00959]
[1610305140309,0.22690854,1282.6,1282.5,5.57909]
[1610305140508,20.61434363,1283.1,1282.5,5.57909]
[1610305140708,1.5565,1283.2,1282.5,15.57909]
[1610305140909,1.5565,1283.2,1282.6,10.0]
[1610305141108,20.63588936,1283.3,1282.6,10.0]
[1610305141308,20.63588936,1283.3,1282.6,11.75]
[1610305141508,20.63588936,1283.3,1282.7,10.0]
[1610305141708,1.20152525,1283.2,1282.7,10.0]
[1610305142109,1.20152525,1283.2,1283.0,4.00959]
[1610305142308,1.20152525,1283.2,1283.0,5.57609]
[1610305142709,1.20152525,1283.2,1283.1,10.0]
[1610305143610,2.76112525,1283.2,1283.1,10.0]
[1610305143812,1.20152525,1283.2,1283.1,10.0]
[1610305144810,2.76162525,1283.2,1283.1,10.0]
[1610305145011,1.20152525,1283.2,1283.1,10.0]
[1610305145412,4.00959,1283.3,1283.1,10.0]
[1610305145710,4.00959,1283.3,1283.2,10.0]
[1610305146110,4.00959,1283.3,1283.1,10.0]
[1610305146310,4.00959,1283.3,1283.2,10.0]
[1610305146711,4.00959,1283.3,1283.1,10.0]
[1610305146911,4.00959,1283.3,1283.2,10.0]
[1610305147312,5.21113484,1283.3,1283.1,10.0]
[1610305147511,5.12183484,1283.3,1283.1,10.0]
[1610305147711,5.12183484,1283.3,1283.2,10.0]
[1610305148012,5.12183484,1283.3,1283.1,10.0]
[1610305148211,5.12183484,1283.3,1283.2,4.00959]
[1610305148411,5.03263484,1283.3,1283.2,14.00959]
[1610305148612,5.03263484,1283.3,1283.2,10.0]
[1610305150716,25.51994191,1283.3,1283.2,10.0]
[1610305151015,3.83109,1283.3,1283.2,10.0]
[1610305151615,24.31095303,1283.3,1283.2,10.0]
[1610305151816,25.51259016,1283.3,1283.2,10.0]
[1610305152016,5.03272713,1283.3,1283.2,10.0]
[1610305152417,25.53201037,1283.3,1283.2,10.0]
[1610305152916,5.03272713,1283.3,1283.2,10.0]
[1610305153316,25.53094814,1283.3,1283.2,10.0]
[1610305153818,5.03272713,1283.3,1283.2,10.0]
[1610305158332,1.20163713,1283.3,1283.2,10.0]
[1610305158928,21.59840313,1283.3,1283.2,10.0]
[1610305160330,1.20163713,1283.3,1283.2,10.0]
[1610305164236,5.21122713,1283.3,1283.2,10.0]
[1610305164436,4.00959,1283.3,1283.2,10.0]
[1610305165437,1.20136476,1283.4,1283.2,10.0]
[1610305165737,1.20128971,1283.3,1283.1,4.00959]
[1610305166040,1.20128971,1283.3,1283.2,10.0]
[1610305167040,1.20120721,1283.6,1283.2,10.0]
[1610305167440,1.20120721,1283.6,1283.3,10.0]
[1610305168046,1.20120721,1283.6,1283.2,10.0]
[1610305168242,1.20120721,1283.6,1283.5,4.00959]
[1610305169042,1.20120721,1283.6,1283.5,14.00959]
[1610305176252,1.20120721,1283.6,1283.5,16.02469]
[1610305177051,1.20064943,1283.8,1283.5,16.02469]
[1610305177452,1.20064943,1283.8,1283.6,10.0]
[1610305177851,1.20064943,1283.8,1283.5,6.02469]
[1610305177852,1.20064943,1283.8,1283.7,10.0]
[1610305178153,1.20064943,1283.8,1283.6,10.0]
[1610305178353,1.20042371,1284.3,1283.7,4.00959]
[1610305178552,1.20042371,1284.3,1283.7,14.00959]
[1610305178955,1.20042371,1284.3,1283.8,10.0]
[1610305179154,1.20042371,1284.3,1283.8,12.367]
[1610305179354,1.20042371,1284.3,1283.9,10.0]
[1610305179554,1.20042371,1284.3,1284.0,10.0]
[1610305179854,1.20019091,1284.4,1284.0,10.0]
[1610305180054,1.20019091,1284.4,1283.9,10.0]
[1610305180254,1.20019091,1284.4,1284.0,10.0]
[1610305180454,1.20019091,1284.4,1284.3,4.00959]
[1610305180653,1.20019091,1284.4,1284.3,5.91829]
[1610305180855,1.20019091,1284.4,1284.3,15.91829]
[1610305181956,1.20019091,1284.4,1284.3,11.9087]
[1610305182357,5.20978091,1284.4,1284.3,11.9087]
[1610305182557,4.00959,1284.4,1284.3,11.9087]
[1610305182757,24.54531138,1284.4,1284.3,11.9087]
[1610305183057,4.00959,1284.4,1284.3,11.9087]
[1610305183960,5.21011768,1284.4,1284.3,11.9087]
[1610305186659,7.24151768,1284.4,1284.3,11.9087]
[1610305190065,1.20052768,1284.4,1284.3,11.9087]
[1610305190468,5.21011768,1284.4,1284.3,11.9087]
[1610305190867,4.00959,1284.4,1284.3,11.9087]
[1610305192069,5.21036981,1284.4,1284.3,11.9087]
[1610305194770,6.82366981,1284.4,1284.3,11.9087]
[1610305195375,6.82366981,1284.4,1284.3,10.7796]
[1610305197277,36.82366981,1284.4,1284.3,10.7796]
[1610305197476,6.82366981,1284.4,1284.3,10.7796]
[1610305197678,2.81407981,1284.4,1284.3,10.7796]
[1610305198184,23.75740378,1284.4,1284.3,10.7796]
[1610305198381,27.76699378,1284.4,1284.3,10.7796]
[1610305198781,6.82366981,1284.4,1284.3,10.7796]
[1610305203792,27.86316009,1284.4,1284.3,10.7796]
[1610305205294,57.86316009,1284.4,1284.3,9.8871]
[1610305205494,57.86316009,1284.4,1284.3,7.7055]
[1610305206696,57.86316009,1284.4,1284.3,6.1901]
[1610305206895,57.86316009,1284.4,1284.3,3.085]
[1610305207298,36.82366981,1284.4,1284.3,1.525]
[1610305207499,36.82366981,1284.4,1284.3,0.8651]
[1610305207696,36.82366981,1284.4,1284.3,0.7607]
[1610305207998,36.82366981,1284.4,1284.3,0.1142]
[1610305208199,0.84713052,1284.2,1282.2,5.66329]
[1610305208398,32.81407981,1284.4,1282.6,8.6165]
[1610305208598,20.51723818,1283.0,1282.6,8.6165]
[1610305208798,20.51723818,1283.0,1282.3,8.5023]
[1610305208999,20.51723818,1283.0,1282.2,1.6537]
[1610305209201,20.49344733,1282.8,1282.7,8.5023]
[1610305209600,2.3643,1283.1,1282.2,1.6537]
[1610305209800,1.20203171,1282.9,1282.2,1.6537]
[1610305210000,1.20203171,1282.9,1282.8,8.5023]
[1610305210400,1.20203171,1282.9,1282.2,1.6537]
[1610305210602,5.21162171,1282.9,1282.5,8.5023]
[1610305211002,5.21162171,1282.9,1282.3,8.5023]
[1610305211202,5.21162171,1282.9,1281.5,1.9895]
[1610305211403,5.21162171,1282.9,1282.4,8.5023]
[1610305211606,3.36840731,1282.8,1282.4,8.5023]
[1610305211804,3.36840731,1282.8,1281.6,8.5023]
[1610305212003,20.4948733,1282.2,1281.7,8.5023]
[1610305212404,20.48314162,1282.1,1281.6,8.5023]
[1610305212604,4.00959,1281.8,1281.5,1.9895]
[1610305213005,4.00959,1281.8,1281.6,8.5023]
[1610305213404,4.00959,1281.8,1281.7,8.5023]
[1610305213704,4.00959,1281.8,1281.6,8.5023]
[1610305214105,4.00959,1281.8,1281.7,8.5023]
[1610305214307,4.00959,1281.8,1281.6,8.5023]
[1610305214706,4.00959,1281.8,1281.7,8.5023]
[1610305215706,5.21255454,1281.8,1281.7,8.5023]
[1610305218909,25.74192373,1281.8,1281.7,8.5023]
[1610305219611,5.21255454,1281.8,1281.7,8.5023]
[1610305221112,35.21255454,1281.8,1281.7,8.5023]
[1610305221312,5.21255454,1281.8,1281.7,8.5023]
[1610305221712,59.73935454,1281.8,1281.7,8.5023]
[1610305221912,59.73935454,1281.8,1281.7,6.9593]
[1610305222116,59.73935454,1281.8,1281.7,3.2151]
[1610305222318,59.73935454,1281.8,1281.7,0.1784]
[1610305222516,59.73935454,1281.8,1280.5,47.9297]
[1610305222917,55.72976454,1281.8,1280.6,0.1784]
[1610305223117,20.4760983,1280.8,1280.6,0.1784]
[1610305223317,20.47537824,1280.7,1280.5,47.9297]
[1610305223716,58.0549,1280.5,1280.0,2.4152]
[1610305224519,4.00959,1280.1,1280.0,2.4152]
[1610305224717,4.00959,1280.1,1279.0,54.9055]
[1610305226619,4.00959,1279.1,1279.0,54.9055]
[1610305233227,4.00959,1279.1,1278.2,4.00959]
[1610305234528,65.3115,1279.3,1278.2,4.00959]
[1610305234529,4.00959,1278.3,1278.2,4.00959]
[1610305235630,4.00959,1278.3,1277.8,64.6508]
[1610305236532,65.3115,1279.3,1278.1,4.00959]
[1610305236932,65.3115,1279.3,1278.1,1.8]
[1610305238535,4.00959,1278.2,1278.1,1.8]
[1610305242137,4.00959,1278.2,1277.8,64.6508]
[1610305242637,64.2495,1278.5,1277.8,4.00959]
[1610305243038,64.2495,1278.5,1277.8,6.25369]
[1610305243638,64.2495,1278.5,1277.8,7.80089]
[1610305244238,20.40312512,1279.7,1277.8,7.80089]
[1610305244438,22.54379315,1279.9,1277.8,7.80089]
[1610305244639,2.1177,1279.9,1279.0,4.00959]
[1610305245041,20.43539312,1280.0,1279.0,6.43639]
[1610305245840,20.45891499,1280.1,1279.0,6.43639]
[1610305246640,4.00959,1279.5,1279.4,4.00959]
[1610305247240,20.49326373,1280.4,1279.4,5.79059]
[1610305247440,20.50505062,1280.5,1279.4,5.79059]
[1610305247842,20.50991688,1280.6,1279.4,5.79059]
[1610305248041,22.07051688,1280.6,1279.4,5.79059]
[1610305248540,4.00959,1279.5,1279.4,1.781]
[1610305251247,4.00959,1279.5,1279.0,2.4268]
[1610305251447,4.00959,1279.5,1278.6,65.23099]
[1610305251648,4.00959,1279.5,1278.6,4.00959]
[1610305251848,4.00959,1279.5,1278.0,62.9424]
[1610305252648,66.3858,1279.7,1278.1,4.00959]
[1610305252850,86.83631916,1279.7,1278.1,6.19089]
[1610305253249,86.83631916,1279.7,1278.1,2.1813]
[1610305253649,20.44897377,1279.6,1278.1,2.1813]
[1610305253848,21.65382415,1279.6,1278.1,2.1813]
[1610305254049,1.20485038,1279.6,1278.1,2.1813]
[1610305254650,4.00959,1278.5,1278.1,2.1813]
[1610305255452,1.20485038,1279.6,1278.1,2.1813]
[1610305255851,21.68175298,1279.6,1278.1,2.1813]
[1610305256152,1.20485038,1279.6,1278.1,2.1813]
[1610305256553,4.00959,1278.7,1278.2,4.00959]
[1610305257252,4.00959,1278.7,1278.1,2.1813]
[1610305258055,4.00959,1278.7,1278.0,62.9424]
[1610305258654,4.00959,1278.7,1278.2,4.00959]
[1610305259054,4.00959,1278.7,1278.2,6.25319]
[1610305259357,2.45249,1278.7,1278.2,6.25319]
[1610305259557,1.5648,1279.6,1278.2,6.25319]
[1610305259758,64.8045,1279.7,1278.2,6.25319]
[1610305260359,85.43494395,1279.7,1278.2,6.25319]
[1610305260560,4.00959,1278.6,1278.2,6.25319]
[1610305261160,4.00959,1278.6,1278.2,2.2436]
[1610305262561,4.00959,1278.4,1278.2,2.2436]
[1610305263164,20.6581686,1279.6,1278.2,2.2436]
[1610305263363,20.66678341,1279.5,1278.2,3.7952]
[1610305263564,20.69403948,1279.7,1278.2,3.7952]
[1610305263964,1.20460466,1279.4,1278.2,3.7952]
[1610305264565,4.00959,1278.8,1278.4,4.00959]
[1610305264967,4.00959,1278.8,1278.2,2.2436]
[1610305265166,4.00959,1278.8,1277.8,2.2441]
[1610305265570,4.00959,1278.8,1275.4,0.24118897]
[1610305265770,4.00959,1278.8,1275.3,0.24118741]
[1610305265968,4.00959,1278.8,1275.2,0.24120144]
[1610305266369,4.00959,1278.8,1275.3,2.3501]
[1610305266567,4.00959,1278.8,1278.3,4.00959]
[1610305267169,4.00959,1278.8,1278.3,1.6961]
[1610305268769,4.00959,1278.8,1278.3,5.70569]
[1610305268968,1.5472,1279.2,1278.3,5.70569]
[1610305269168,20.73579336,1279.7,1278.3,5.70569]
[1610305269368,4.9727,1281.3,1278.3,5.70569]
[1610305269369,20.74597816,1279.8,1278.3,5.70569]
[1610305269969,20.74323503,1279.9,1278.3,5.70569]
[1610305270170,20.74259179,1280.0,1278.3,5.70569]
[1610305270570,1.20455035,1279.7,1278.3,5.70569]
[1610305270771,4.00959,1279.0,1278.8,4.00959]
[1610305270974,4.00959,1279.0,1278.3,1.6961]
[1610305272073,1.20474577,1278.9,1278.3,1.6961]
[1610305272475,1.20474577,1278.9,1277.8,1.5451]
[1610305272676,1.20474577,1278.9,1278.4,4.00959]
[1610305272876,3.84273577,1279.0,1278.4,7.28399]
[1610305273779,20.70759966,1279.9,1278.4,7.28399]
[1610305273979,20.68973639,1280.0,1278.4,7.28399]
[1610305274578,4.00959,1279.1,1278.8,4.00959]
[1610305274780,4.00959,1279.1,1278.4,3.2744]
[1610305274979,4.00959,1279.1,1278.4,1.6982]
[1610305276680,4.00959,1278.5,1278.4,1.6982]
[1610305277580,20.69724612,1279.7,1278.4,1.6982]
[1610305277780,20.69724612,1279.7,1278.2,4.00959]
[1610305277982,20.67615608,1279.6,1278.4,2.4754]
[1610305278583,4.00959,1278.8,1278.4,2.4754]
[1610305281887,46.2053,1278.9,1278.4,2.4754]
[1610305282587,4.00959,1278.8,1278.4,2.4754]
[1610305282987,4.00959,1278.8,1278.2,4.00959]
[1610305284688,4.00959,1278.8,1278.5,4.00959]
[1610305284889,4.00959,1278.8,1278.5,6.35769]
[1610305285289,4.00959,1278.8,1278.5,2.3481]
[1610305285989,5.56409,1278.8,1278.5,2.3481]
[1610305286189,4.00959,1278.8,1278.5,2.3481]
[1610305286790,4.00959,1278.6,1278.5,2.3481]
[1610305289391,46.2053,1278.9,1278.5,2.3481]
[1610305289592,20.74728465,1279.5,1278.5,2.3481]
[1610305289792,20.74753863,1279.6,1278.3,1.5811]
[1610305289992,20.7468224,1279.7,1278.5,2.0507]
[1610305290594,48.7816,1279.9,1278.5,2.0507]
[1610305290595,69.52374761,1279.9,1278.5,2.0507]
[1610305290794,4.00959,1279.8,1279.6,4.00959]
[1610305291195,4.00959,1279.8,1278.5,3.6014]
[1610305291396,4.00959,1279.8,1278.5,2.0507]
[1610305292197,24.75203951,1279.8,1278.5,2.0507]
[1610305292597,20.74267509,1279.7,1278.5,2.0507]
[1610305292802,4.00959,1279.5,1279.3,4.00959]
[1610305293003,20.7413151,1279.8,1279.3,4.00959]
[1610305293202,69.52269357,1279.9,1279.3,6.51079]
[1610305293601,69.52269357,1279.9,1279.3,2.5012]
[1610305294606,20.71465785,1279.8,1279.3,2.5012]
[1610305294810,4.00959,1279.4,1279.3,2.5012]
[1610305297611,20.68788375,1279.8,1279.3,2.5012]
[1610305298010,20.64802967,1279.9,1279.3,2.5012]
[1610305298209,20.64802967,1279.9,1278.7,5.57419]
[1610305298410,20.650158,1280.0,1278.7,4.00959]
[1610305298611,73.41568097,1280.1,1278.7,34.00959]
[1610305298811,73.41568097,1280.1,1279.8,4.00959]
[1610305299011,20.6602619,1280.2,1279.8,5.96069]
[1610305300311,20.72062708,1280.3,1279.8,5.96069]
[1610305300812,4.00959,1279.9,1279.8,5.96069]
[1610305302513,5.58399,1279.9,1279.8,5.96069]
[1610305302713,5.58399,1279.9,1279.8,1.9511]
[1610305303513,4.00959,1279.9,1279.8,1.9511]
[1610305303914,24.75119853,1279.9,1279.8,1.9511]
[1610305304114,24.75119853,1279.9,1278.8,65.2115]
[1610305304316,4.00959,1279.9,1278.8,65.2115]
[1610305304517,5.56839,1279.9,1278.8,65.2115]
[1610305304717,4.00959,1278.9,1278.8,65.2115]
[1610305305515,20.74720616,1279.5,1278.8,65.2115]
[1610305305715,20.74720616,1279.5,1278.8,67.156]
[1610305305916,22.33102735,1279.7,1278.8,67.156]
[1610305306116,1.586,1279.7,1278.8,97.156]
[1610305306316,22.29838306,1279.9,1278.8,97.156]
[1610305306516,20.73739943,1280.3,1278.8,97.156]
[1610305306716,20.73739943,1280.3,1280.1,4.00959]
[1610305306918,52.9096,1280.5,1280.1,4.00959]
[1610305306919,20.73454415,1280.4,1280.1,4.00959]
[1610305307617,1.5796,1280.4,1280.1,4.00959]
[1610305308020,73.6448304,1280.5,1280.1,4.00959]
[1610305308417,20.73457041,1280.6,1280.1,4.00959]
[1610305308817,20.73457041,1280.6,1280.4,5.83629]
[1610305309418,20.73420344,1280.5,1280.4,5.83629]
[1610305309818,20.73392871,1280.6,1280.4,5.83629]
[1610305310719,20.72988791,1280.8,1280.4,5.83629]
[1610305311118,20.72847512,1280.9,1280.4,5.83629]
[1610305311518,20.72610026,1281.1,1280.4,5.83629]
[1610305312120,20.72628393,1281.2,1280.4,5.83629]
[1610305312721,20.72628393,1281.2,1281.1,4.00959]
[1610305313522,20.72408922,1281.4,1281.1,4.00959]
[1610305313921,20.7233875,1281.5,1281.1,4.00959]
[1610305314822,20.7233875,1281.5,1281.4,4.00959]
[1610305315021,20.7233875,1281.5,1281.4,5.88079]
[1610305315421,20.72142021,1281.6,1281.4,5.88079]
[1610305315821,20.72107906,1281.5,1281.4,5.88079]
[1610305317325,20.72107906,1281.5,1281.4,1.8712]
[1610305317523,20.72054531,1281.6,1281.4,1.8712]
[1610305317923,20.72123923,1281.5,1281.4,1.8712]
[1610305318124,20.72070223,1281.6,1281.4,1.8712]
[1610305318724,4.00959,1281.5,1281.4,1.8712]
[1610305318924,24.73085858,1281.5,1281.4,1.8712]
[1610305319928,4.00959,1281.5,1281.4,1.8712]
[1610305320128,4.00959,1281.5,1281.2,4.00959]
[1610305320527,20.72341399,1281.3,1281.2,4.00959]
[1610305321228,20.71994767,1281.5,1281.2,4.00959]
[1610305321629,20.71686124,1281.6,1281.2,4.00959]
[1610305321831,20.71557414,1281.8,1281.2,4.00959]
[1610305322731,20.71557414,1281.8,1281.7,4.00959]
[1610305322929,47.0652,1282.2,1281.7,4.00959]
[1610305322930,20.71415909,1281.9,1281.7,4.00959]
[1610305323129,20.71415909,1281.9,1281.7,6.18169]
[1610305323529,47.0652,1282.2,1281.7,6.18169]
[1610305323530,20.71244874,1282.0,1281.7,6.18169]
[1610305323830,20.71210448,1282.1,1281.7,6.18169]
[1610305324837,20.71059961,1282.0,1281.7,2.1721]
[1610305325034,20.71035049,1282.1,1281.7,2.1721]
[1610305325736,67.7741967,1282.2,1281.7,2.1721]
[1610305326735,67.7741967,1282.2,1282.1,4.00959]
[1610305326934,67.7741967,1282.2,1282.1,5.88019]
[1610305327137,47.0652,1282.2,1282.1,5.88019]
[1610305327339,20.70880041,1282.3,1282.1,5.88019]
[1610305327739,20.70979252,1282.2,1282.1,5.88019]
[1610305331544,20.70931783,1282.3,1282.1,5.88019]
[1610305332145,4.00959,1282.7,1282.1,5.88019]
[1610305332548,20.70942063,1282.2,1282.1,5.88019]
[1610305332749,20.70831743,1282.3,1282.1,5.88019]
[1610305333349,20.70729031,1282.4,1282.1,5.88019]
[1610305334755,19.61673605,1282.8,1282.1,5.88019]